bitfinex/quotes_SOLUSD_20251119
["timestamp","ask_amount","ask_price","bid_price","bid_amount"]
[1763564907726,10.75269629,139.14,139.09,10.03269629]
[1763564907924,10.03269629,139.13,139.11,1.76]
[1763564908245,10.03269629,139.12,139.08,1.76]
[1763564908408,10.03269629,139.11,139.05,9.78882769]
[1763564908608,10.03269629,139.11,139.07,1.76]
[1763564908609,10.03269629,139.09,139.07,1.76]
[1763564908852,25.30648732,139.17,139.03,10.50809691]
[1763564909138,10.03269629,139.04,138.93,0.71978694]
[1763564909316,10.03269629,139.02,138.97,10.03269629]
[1763564909519,10.03269629,139.08,138.94,1.76]
[1763564909520,10.03269629,139.01,138.94,1.76]
[1763564909750,0.72,139.01,138.94,11.79269629]
[1763564909953,0.72,139.03,138.94,1.76]
[1763564910158,0.72,139.03,138.94,10.03269629]
[1763564910457,10.03269629,139.01,138.95,11.79269629]
[1763564910657,10.03269629,139.0,138.95,1.76]
[1763564910960,10.03269629,139.01,138.95,11.79269629]
[1763564911440,10.75269629,139.0,138.96,1.76]
[1763564911739,10.75269629,139.0,138.95,10.03269629]
[1763564911740,10.03269629,138.97,138.91,17.32]
[1763564911963,25.31211866,139.06,138.88,0.72004608]
[1763564911964,10.03269629,138.94,138.88,0.72004608]
[1763564912119,10.03269629,138.93,138.89,1.76]
[1763564912324,10.03269629,138.92,138.89,1.76]
[1763564912529,10.03269629,138.93,138.89,1.76]
[1763564912759,10.03269629,138.92,138.89,1.76]
[1763564912961,0.72,138.97,138.89,1.76]
[1763564913159,0.72,138.97,138.85,10.03269629]
[1763564913160,10.03269629,138.9,138.85,10.03269629]
[1763564913349,10.03269629,138.89,138.86,1.76]
[1763564913561,10.03269629,138.88,138.86,1.76]
[1763564913759,18.12096,138.94,138.86,1.76]
[1763564913967,0.72,139.0,138.94,18.12096]
[1763564914264,0.72,138.98,138.95,1.78]
[1763564914470,0.72,138.98,138.94,10.03269629]
[1763564914645,0.72,138.98,138.96,1.78]
[1763564914975,0.72,139.0,138.96,1.78]
[1763564915144,10.30718892,139.02,138.97,10.30718892]
[1763564915350,10.30718892,139.02,138.96,1.78]
[1763564915550,1.78,139.11,138.98,10.30718892]
[1763564915747,0.72,139.05,138.99,1.78]
[1763564916236,10.30718892,139.01,139.0,1.78]
[1763564916659,11.02718892,139.01,139.0,1.78]
[1763564916848,0.72,139.04,139.0,1.78]
[1763564917364,10.30718892,139.03,139.0,1.78]
[1763564917669,10.30718892,139.01,139.0,1.78]
[1763564917872,11.02718892,139.01,139.0,1.78]
[1763564918563,9.78882769,139.11,139.0,1.78]
[1763564918862,0.72,139.05,139.0,1.78]
[1763564919173,10.30718892,139.04,139.0,1.78]
[1763564919369,0.72,139.05,139.0,1.78]
[1763564919370,10.30718892,139.03,139.0,1.78]
[1763564919670,0.72,139.05,139.0,1.78]
[1763564919834,0.72,139.05,139.0,12.08718892]
[1763564920040,0.72,139.05,139.01,10.30718892]
[1763564920240,11.02718892,139.08,139.03,10.30718892]
[1763564920471,0.72,139.08,139.04,1.78]
[1763564920661,10.30718892,139.07,139.04,1.78]
[1763564920868,10.30718892,139.05,139.04,1.78]
[1763564921176,10.30718892,139.05,138.98,0.71952798]
[1763564921177,10.30718892,139.05,139.01,1.78]
[1763564921474,11.02718892,139.04,139.01,1.78]
[1763564921874,0.72,139.04,139.01,1.78]
[1763564922043,0.72,139.07,139.01,12.08718892]
[1763564922249,10.30718892,139.07,139.02,10.30718892]
[1763564922462,10.30718892,139.04,138.97,35.10545367]
[1763564922662,10.30718892,139.03,138.98,1.78]
[1763564922874,18.12096,139.1,138.94,0.71973513]
[1763564922875,0.72,139.05,138.94,0.71973513]
[1763564923184,1.78,139.07,138.81,50.0]
[1763564923185,10.30718892,138.95,138.92,1.78]
[1763564923567,10.30718892,138.96,138.92,1.78]
[1763564923748,0.72,138.97,138.92,1.78]
[1763564923944,10.30718892,138.95,138.92,1.78]
[1763564924248,10.30718892,138.94,138.92,1.78]
[1763564924454,10.30718892,138.93,138.82,9.78882769]
[1763564924763,5.45844718,138.99,138.83,1.78]
[1763564924764,10.30718892,138.89,138.83,1.78]
[1763564924967,10.30718892,138.9,138.84,10.30718892]
[1763564925148,10.30718892,138.89,138.85,1.78]
[1763564925350,10.30718892,138.9,138.85,12.08718892]
[1763564925556,0.72,138.94,138.86,10.30718892]
[1763564925760,10.30718892,138.92,138.86,20.09601661]
[1763564926081,10.30718892,138.87,138.77,0.92061684]
[1763564926248,10.30718892,138.87,138.81,10.30718892]
[1763564926455,10.30718892,138.87,138.82,1.78]
[1763564926652,0.72,138.91,138.84,10.30718892]
[1763564926966,10.30718892,138.89,138.84,10.30718892]
[1763564927172,0.72,138.89,138.84,10.30718892]
[1763564927556,5.45844718,138.92,138.85,20.09601661]
[1763564927763,10.30718892,138.91,138.86,12.08718892]
[1763564927980,11.02718892,138.91,138.86,12.08718892]
[1763564928157,10.30718892,138.87,138.83,1.78]
[1763564928528,10.30718892,138.88,138.83,12.08718892]
[1763564928654,11.02718892,138.87,138.83,1.78]
[1763564928990,4.77231826,138.92,138.86,10.30718892]
[1763564929292,10.30718892,138.93,138.88,10.30718892]
[1763564929472,10.30718892,138.92,138.87,12.08718892]
[1763564929985,0.71,138.91,138.87,1.78]
[1763564930362,0.71,138.91,138.87,12.08718892]
[1763564930680,0.71,138.91,138.87,1.78]
[1763564930885,10.30718892,138.9,138.87,1.78]
[1763564931058,10.30718892,138.89,138.87,1.78]
[1763564931584,11.01718892,138.96,138.88,10.30718892]
[1763564931758,10.30718892,138.94,138.88,9.78882769]
[1763564931959,0.71,138.95,138.89,10.30718892]
[1763564932173,11.01718892,138.94,138.89,10.30718892]
[1763564932380,11.01718892,138.93,138.87,1.78]
[1763564932584,10.30718892,138.92,138.87,19.28816187]
[1763564932900,0.71,138.93,138.87,12.08718892]
[1763564933195,4.77476829,138.94,138.89,10.30718892]
[1763564933405,5.48476829,138.96,138.87,26.98330492]
[1763564933613,4.77476829,138.97,138.91,10.30718892]
[1763564933766,5.48476829,138.99,138.92,10.30718892]
[1763564933971,10.30718892,138.98,138.93,10.30718892]
[1763564934197,11.01718892,138.98,138.93,10.30718892]
[1763564934384,11.01718892,138.97,138.92,10.30718892]
[1763564934589,10.30718892,138.96,138.91,1.78]
[1763564934891,11.01718892,138.97,138.91,19.28603624]
[1763564935110,10.30718892,138.96,138.91,19.28603624]
[1763564935278,11.01718892,138.97,138.91,8.97884732]
[1763564935474,11.01718892,138.97,138.92,10.30718892]
[1763564935894,11.01718892,138.97,138.91,8.9788822]
[1763564935895,0.71,138.96,138.91,1.78]
[1763564936199,10.30718892,138.95,138.91,1.78]
[1763564936398,11.01718892,138.96,138.91,1.78]
[1763564936589,4.7750979,139.0,138.91,12.08718892]
[1763564936590,0.71,138.98,138.91,12.08718892]
[1763564936900,10.02921884,138.96,138.91,11.80921884]
[1763564937075,0.71,138.99,138.91,11.80921884]
[1763564937076,10.02921884,138.95,138.91,1.78]
[1763564937471,10.02921884,138.92,138.8,0.72046109]
[1763564937678,18.12096,138.95,138.86,10.02921884]
[1763564937887,10.02921884,138.91,138.87,1.78]
[1763564938174,10.02921884,138.92,138.87,1.78]
[1763564938375,10.02921884,138.92,138.87,11.80921884]
[1763564938599,0.71,138.92,138.87,1.78]
[1763564938810,10.02921884,138.92,138.87,19.01015496]
[1763564939377,0.71,138.95,138.88,10.02921884]
[1763564939378,10.02921884,138.93,138.88,10.02921884]
[1763564939595,10.73921884,138.93,138.87,8.98093612]
[1763564939905,10.73921884,138.93,138.87,19.01015496]
[1763564940103,10.73921884,138.93,138.87,8.98093612]
[1763564940282,10.73921884,138.93,138.86,9.78882769]
[1763564940485,0.71,138.93,138.88,1.78]
[1763564940793,0.71,138.98,138.9,10.02921884]
[1763564940995,10.02921884,138.95,138.9,10.02921884]
[1763564941385,10.02921884,138.96,138.91,11.80921884]
[1763564941876,10.02921884,138.93,138.91,1.78]
[1763564942076,10.73921884,138.92,138.77,0.2]
[1763564942380,10.73921884,138.92,138.8,26.99610092]
[1763564942381,2.49,138.92,138.8,26.99610092]
[1763564942703,10.02921884,138.9,138.85,10.02921884]
[1763564942913,10.02921884,138.91,138.86,11.80921884]
[1763564943090,10.02921884,138.9,138.86,1.78]
[1763564943480,0.71,138.91,138.86,1.78]
[1763564943679,10.73921884,138.91,138.86,11.80921884]
[1763564943881,10.02921884,138.9,138.86,1.78]
[1763564944105,0.71,138.9,138.86,1.78]
[1763564944406,1.78,138.96,138.78,18.01412307]
[1763564944407,10.02921884,138.87,138.78,18.01412307]
[1763564944702,10.02921884,138.85,138.8,10.02921884]
[1763564944884,0.71,138.88,138.82,10.02921884]
[1763564945091,10.02921884,138.89,138.84,10.02921884]
[1763564945278,1.78,138.95,138.88,10.02921884]
[1763564945279,0.71,138.95,138.88,10.02921884]
[1763564945478,0.71,138.95,138.91,10.02921884]
[1763564945710,0.71,138.97,138.92,11.80921884]
[1763564945916,0.71,138.94,138.92,1.78]
[1763564946412,0.71,138.98,138.93,10.02921884]
[1763564946612,6.04632737,139.07,138.93,9.78882769]
[1763564946793,0.71,139.01,138.96,10.02921884]
[1763564947110,0.71,139.01,138.97,11.80921884]
[1763564947705,0.71,139.01,138.97,1.78]
[1763564947909,10.73921884,139.01,138.97,1.78]
[1763564948221,10.73921884,139.01,138.95,10.02921884]
[1763564948393,10.73921884,139.0,138.95,1.78]
[1763564948595,0.71,138.99,138.95,1.78]
[1763564948790,0.71,138.99,138.95,11.80921884]
[1763564948992,0.71,139.02,138.98,10.02921884]
[1763564949202,0.71,139.02,138.99,1.78]
[1763564949383,10.02921884,139.06,138.99,1.78]
[1763564949587,10.02921884,139.06,139.0,10.02921884]
[1763564949784,0.71,139.05,139.0,10.02921884]
[1763564950012,0.71,139.05,138.99,11.80921884]
[1763564950311,0.71,139.08,139.04,10.02921884]
[1763564950494,0.71,139.08,138.99,1.78]
[1763564950495,0.71,139.08,139.06,10.02921884]
[1763564950692,0.71,139.08,139.06,1.78]
[1763564953504,0.71,139.08,138.99,18.12096]
[1763564953505,6.69904534,139.08,138.98,17.98785603]
[1763564953800,5.98904534,139.06,139.0,5.98904534]
[1763564954006,5.98904534,139.06,139.01,1.76]
[1763564954201,0.71,139.05,139.01,1.76]
[1763564954407,22.91169806,139.08,139.03,5.98904534]
[1763564954592,0.71,139.09,139.01,1.76]
[1763564954800,0.71,139.09,139.06,5.98904534]
[1763564954986,0.71,139.11,139.08,5.98904534]
[1763564955191,0.71,139.14,139.07,1.76]
[1763564955407,0.71,139.13,139.09,5.98904534]
[1763564955612,0.71,139.13,139.1,5.98904534]
[1763564955919,0.1,139.15,139.12,5.98904534]
[1763564956085,0.71,139.14,139.04,9.78882769]
[1763564956287,0.71,139.14,139.05,1.76]
[1763564956498,0.71,139.14,139.08,5.98904534]
[1763564956796,5.42632015,139.15,139.0,34.61825749]
[1763564956797,0.1,139.15,139.12,5.98904534]
[1763564957016,0.81,139.15,139.12,5.98904534]
[1763564957320,0.1,139.15,139.13,5.98904534]
[1763564957998,0.1,139.15,139.14,5.98904534]
[1763564958215,0.1,139.15,139.11,1.76]
[1763564958548,0.1,139.15,139.14,5.98904534]
[1763564958818,0.1,139.15,139.02,22.20170852]
[1763564958819,0.81,139.15,139.03,7.19269222]
[1763564958987,0.81,139.15,139.12,5.98904534]
[1763564959187,0.81,139.15,139.07,9.78882769]
[1763564959382,5.98904534,139.14,139.08,1.76]
[1763564959613,5.98904534,139.14,139.09,5.98904534]
[1763564959918,5.98904534,139.11,139.06,1.76]
[1763564960119,0.72,139.14,139.1,5.98904534]
[1763564960909,0.72,139.14,139.09,1.76]
[1763564961109,0.1,139.15,139.1,40.93962715]
[1763564961621,0.1,139.15,139.09,8.94947225]
[1763564961798,0.1,139.15,139.1,9.78882769]
[1763564962194,0.1,139.15,139.14,5.98904534]
[1763564962402,0.1,139.15,139.14,7.74904534]
[1763564962603,0.82,139.15,139.12,5.98904534]
[1763564962899,0.82,139.15,139.11,7.74904534]
[1763564963107,0.82,139.15,139.06,10.50794174]
[1763564963335,0.82,139.15,138.92,68.68459997]
[1763564963336,5.98904534,139.09,138.99,9.78882769]
[1763564963641,5.98904534,139.08,139.02,5.98904534]
[1763564963840,6.70904534,139.08,139.03,5.98904534]
[1763564964129,0.69,139.11,139.04,2.47921749]
[1763564964336,0.69,139.11,139.04,1.76]
[1763564964512,6.67904534,139.11,139.05,5.98904534]
[1763564964716,0.69,139.11,139.04,1.76]
[1763564965026,0.69,139.1,139.05,5.98904534]
[1763564965204,6.67904534,139.1,139.05,5.98904534]
[1763564965541,0.1,139.15,139.06,2.49911405]
[1763564965732,0.1,139.15,139.14,5.98904534]
[1763564966330,0.1,139.15,139.13,1.78]
[1763564966916,0.1,139.15,139.13,8.96744582]
[1763564967118,0.1,139.15,139.14,5.98904534]
[1763564967529,0.79,139.15,139.07,17.9757354]
[1763564967721,0.1,139.15,139.14,5.98904534]
[1763564967911,0.1,139.15,139.14,7.76904534]
[1763564968120,0.1,139.15,139.14,1.78]
[1763564968621,0.1,139.15,139.14,7.76904534]
[1763564969234,0.1,139.15,139.14,14.95605123]
[1763564969432,0.1,139.15,139.14,1.78]
[1763564969730,0.1,139.15,139.09,27.90978769]
[1763564969731,0.79,139.15,139.09,27.90978769]
[1763564969935,0.79,139.15,139.11,5.98904534]
[1763564970308,0.79,139.15,139.06,10.50794174]
[1763564970309,5.98904534,139.14,139.06,10.50794174]
[1763564970638,0.79,139.15,139.05,5.98904534]
[1763564970937,5.98904534,139.11,139.06,5.98904534]
[1763564971304,0.69,139.14,139.08,5.98904534]
[1763564971510,6.67904534,139.14,139.08,5.98904534]
[1763564971836,5.98904534,139.12,139.09,1.78]
[1763564972011,5.98904534,139.12,139.08,1.78]
[1763564972327,0.69,139.12,139.09,5.98904534]
[1763564972707,0.79,139.15,139.08,1.78]
[1763564973031,5.98904534,139.14,139.09,5.98904534]
[1763564973339,5.98904534,139.1,139.05,5.98904534]
[1763564973513,0.69,139.14,139.05,1.78]
[1763564973709,5.98904534,139.1,139.05,1.78]
[1763564973910,5.98904534,139.1,139.05,7.76904534]
[1763564974114,0.69,139.09,139.06,5.98904534]
[1763564974614,6.67904534,139.12,139.07,5.98904534]
[1763564974837,0.69,139.12,139.08,5.98904534]
[1763564975035,0.1,139.15,139.11,5.98904534]
[1763564975350,0.1,139.15,138.95,1.99999999]
[1763564975351,6.67904534,139.12,138.95,1.99999999]
[1763564975633,5.98904534,139.1,139.0,33.76341425]
[1763564975836,5.98904534,139.1,139.0,33.89883303]
[1763564976136,6.67904534,139.1,139.05,5.98904534]
[1763564976335,0.69,139.09,139.06,1.78]
[1763564976524,25.40753298,139.15,139.06,1.78]
[1763564976525,5.98904534,139.11,139.06,1.78]
[1763564976725,5.98904534,139.08,138.99,0.71947622]
[1763564977046,5.98904534,139.07,139.0,1.78]
[1763564977233,5.98904534,139.06,139.0,1.78]
[1763564977538,5.98904534,139.06,139.01,5.98904534]
[1763564977722,0.69,139.06,139.02,5.98904534]
[1763564978051,6.67904534,139.05,139.0,1.78]
[1763564978213,5.98904534,139.04,139.0,1.78]
[1763564978419,0.69,139.04,139.0,1.78]
[1763564978729,6.67904534,139.03,139.0,1.78]
[1763564978932,5.98904534,139.02,139.0,1.78]
[1763564979122,6.67904534,139.02,139.0,1.78]
[1763564979322,6.67904534,139.01,139.0,1.78]
[1763564979531,6.67904534,139.01,138.96,7.76904534]
[1763564979855,0.69,139.0,138.97,5.98904534]
[1763564980024,0.69,139.0,138.96,7.76904534]
[1763564980432,0.69,139.02,138.98,5.98904534]
[1763564980727,0.69,139.06,138.96,7.76904534]
[1763564980913,5.98904534,139.02,138.97,5.98904534]
[1763564981114,5.98904534,139.02,138.96,8.97618436]
[1763564981442,0.69,139.01,138.96,1.78]
[1763564981653,5.98904534,138.99,138.96,1.78]
[1763564981812,5.98904534,139.0,138.96,1.78]
[1763564982141,5.98904534,139.0,138.93,14.96691475]
[1763564982142,5.98904534,138.98,138.93,14.96691475]
[1763564982341,0.69,138.99,138.96,5.98904534]
[1763564982515,0.69,138.99,138.94,9.78882769]
[1763564982718,5.98904534,138.98,138.94,1.78]
[1763564982941,5.98904534,138.97,138.94,1.78]
[1763564983140,0.69,138.96,138.94,1.78]
[1763564983741,6.67904534,139.02,138.95,5.98904534]
[1763564983939,0.69,139.01,138.97,5.98904534]
[1763564984447,0.69,139.01,138.98,5.98904534]
[1763564984647,0.69,139.01,138.94,1.78]
[1763564985147,0.69,139.01,138.97,13.18484299]
[1763564985359,6.67904534,139.03,138.98,5.98904534]
[1763564985524,4.77797086,139.08,138.98,5.98904534]
[1763564985525,5.98904534,139.04,138.98,7.76904534]
[1763564985848,5.98904534,139.06,139.0,5.98904534]
[1763564986053,5.98904534,139.06,138.98,1.78]
[1763564986054,0.69,139.05,139.01,5.98904534]
[1763564986258,0.69,139.05,139.02,5.98904534]
[1763564986844,0.69,139.05,138.98,1.78]
[1763564987143,0.69,139.05,139.0,5.98904534]
[1763564987741,0.69,139.05,138.99,7.19476221]
[1763564988056,0.69,139.05,139.01,5.98904534]
[1763564988219,6.67904534,139.08,139.03,5.98904534]
[1763564988535,6.67904534,139.08,139.02,1.78]
[1763564988731,0.69,139.07,139.02,1.78]
[1763564989633,5.98904534,139.06,139.02,1.78]
[1763564990033,0.69,139.05,139.02,1.78]
[1763564990859,0.69,139.05,139.02,7.76904534]
[1763564991023,0.69,139.05,139.02,14.96220678]
[1763564991229,0.69,139.05,139.02,1.78]
[1763564991824,5.98904534,139.03,138.98,5.98904534]
[1763564992030,5.98904534,139.03,138.98,7.76904534]
[1763564992251,0.69,139.02,138.98,7.76904534]
[1763564992753,0.69,139.02,138.98,1.78]
[1763564993141,0.69,139.02,138.98,7.76904534]
[1763564993344,0.69,139.02,138.98,14.96431896]
[1763564993546,6.67904534,139.05,139.0,5.98904534]
[1763564993857,5.98904534,139.04,138.99,5.98904534]
[1763564994272,5.98904534,139.02,138.98,1.78]
[1763564994444,4.80512413,139.07,138.99,5.98904534]
[1763564994648,0.69,139.02,138.99,5.98904534]
[1763564994856,0.69,139.02,138.98,1.78]
[1763564995057,0.69,139.02,138.98,7.76904534]
[1763564995255,0.69,139.02,138.98,1.78]
[1763564995560,0.69,139.02,138.98,7.76904534]
[1763564995780,0.69,139.02,138.98,1.78]
[1763564995781,5.98904534,139.01,138.98,1.78]
[1763564996143,31.31787585,139.08,138.94,18.12096]
[1763564996144,5.98904534,138.99,138.94,18.12096]
[1763564996356,18.12096,139.05,138.97,5.98904534]
[1763564996669,5.98904534,139.05,139.0,5.98904534]
[1763564996956,0.69,139.04,139.0,5.98904534]
[1763564997157,0.69,139.04,139.0,13.18286121]
[1763564997347,0.69,139.06,139.01,7.74904534]
[1763564997537,0.69,139.06,139.02,5.98904534]
[1763564997955,0.69,139.06,139.03,5.98904534]
[1763564998161,6.67904534,139.08,139.03,5.98904534]
[1763564998534,0.69,139.08,139.04,5.98904534]
[1763564998934,6.67904534,139.1,139.05,5.98904534]
[1763564999352,0.69,139.09,139.05,7.74904534]
[1763564999561,5.98904534,139.11,139.05,1.76]
[1763564999878,0.69,139.09,139.05,7.74904534]
[1763565000093,4.80131637,139.13,139.05,1.76]
[1763565000391,0.69,139.13,139.07,5.98904534]
[1763565000553,5.98904534,139.12,139.04,27.90978769]
[1763565000751,5.98904534,139.12,139.05,1.76]
[1763565001002,0.69,139.11,139.05,1.76]
[1763565001153,0.69,139.13,139.09,13.17835963]
[1763565001354,0.1,139.15,139.12,5.98904534]
[1763565001565,0.1,139.15,139.1,1.76]
[1763565001566,6.77904534,139.15,139.1,1.76]
[1763565001778,0.1,139.15,139.12,5.98904534]
[1763565001984,0.1,139.15,139.1,1.76]
[1763565002189,0.1,139.15,139.13,5.98904534]
[1763565002390,0.1,139.15,139.07,27.90978769]
[1763565002391,6.77904534,139.15,139.11,1.76]
[1763565002579,5.98904534,139.14,139.11,1.76]
[1763565002892,5.98904534,139.13,139.11,1.76]
[1763565003097,0.69,139.12,139.11,1.76]
[1763565003387,6.67904534,139.12,139.08,1.76]
[1763565003557,5.98904534,139.09,138.98,1.0]
[1763565003756,0.69,139.12,139.0,5.98904534]
[1763565003757,5.98904534,139.06,139.0,5.98904534]
[1763565003956,10.78670935,139.1,138.99,7.74904534]
[1763565004156,5.98904534,139.05,139.0,5.98904534]
[1763565004387,5.98904534,139.02,138.99,1.76]
[1763565004574,5.98904534,139.0,138.98,1.0]
[1763565004775,5.98904534,138.99,138.87,0.72009793]
[1763565004981,5.98904534,139.0,138.87,0.71]
[1763565004982,18.12096,138.97,138.87,0.71]
[1763565005157,5.98904534,138.93,138.88,5.98904534]
[1763565005360,9.78882769,139.02,138.89,5.98904534]
[1763565005573,1.99999999,139.03,138.9,0.71]
[1763565005574,0.69,138.99,138.9,0.71]
[1763565005771,5.98904534,138.96,138.91,7.74904534]
[1763565006101,5.98904534,138.98,138.91,1.76]
[1763565006258,0.69,138.99,138.94,5.98904534]
[1763565006459,0.69,138.99,138.93,5.98904534]
[1763565006671,5.98904534,138.98,138.93,5.98904534]
[1763565006869,0.69,138.99,138.94,5.98904534]
[1763565006870,5.98904534,138.99,138.94,5.98904534]
[1763565007188,5.98904534,138.99,138.95,1.76]
[1763565007363,5.98904534,138.97,138.95,1.76]
[1763565007560,0.69,138.98,138.9,1.76]
[1763565007768,5.98904534,139.0,138.9,1.76]
[1763565007769,5.98904534,138.94,138.9,1.76]
[1763565007970,5.98904534,138.96,138.91,5.98904534]
[1763565008371,5.98904534,138.96,138.9,2.47]
[1763565008372,5.98904534,138.95,138.9,1.76]
[1763565008593,5.98904534,138.92,138.84,0.71]
[1763565008762,18.12096,138.98,138.81,0.72040919]
[1763565008763,5.98904534,138.89,138.86,1.76]
[1763565009099,5.98904534,138.89,138.83,7.74904534]
[1763565009100,5.98904534,138.88,138.83,7.74904534]
[1763565009390,5.98904534,138.88,138.83,1.76]
[1763565009391,5.98904534,138.86,138.83,1.76]
[1763565009560,5.98904534,138.84,138.77,0.2]
[1763565009770,24.11000534,138.9,138.79,5.98904534]
[1763565009976,0.69,138.89,138.77,1.96]
[1763565010178,5.98904534,138.8,138.77,0.2]
[1763565010394,18.12096,138.85,138.77,0.2]
[1763565010578,5.98904534,138.84,138.79,5.98904534]
[1763565010778,18.12096,138.87,138.77,0.2]
[1763565010991,5.98904534,138.82,138.77,18.32096]
[1763565011163,7.74904534,138.9,138.77,18.32096]
[1763565011164,5.98904534,138.81,138.77,18.32096]
[1763565011493,0.69,138.89,138.77,0.2]
[1763565011494,5.98904534,138.79,138.77,0.2]
[1763565011667,5.98904534,138.78,138.77,0.2]
[1763565011874,5.98904534,138.79,138.77,0.2]
[1763565012072,5.98904534,138.78,138.77,0.2]
[1763565012590,0.69,138.78,138.77,0.2]
[1763565012793,10.74810129,138.78,138.77,0.2]
[1763565013011,0.69,138.78,138.77,0.2]
[1763565013497,0.69,138.78,138.74,0.2]
[1763565013498,10.05810129,138.75,138.74,0.1]
[1763565014007,10.74810129,138.75,138.74,0.1]
[1763565015768,10.74810129,138.75,138.66,1.76]
[1763565016073,10.74810129,138.75,138.62,10.05810129]
[1763565016074,10.05810129,138.67,138.62,10.05810129]
[1763565016281,10.05810129,138.66,138.61,1.76]
[1763565016511,0.69,138.73,138.62,0.71]
[1763565016807,10.05810129,138.68,138.62,0.71]
[1763565017014,10.05810129,138.67,138.62,0.71]
[1763565017304,10.05810129,138.68,138.63,10.05810129]
[1763565017512,10.74810129,138.67,138.6,0.91]
[1763565017686,0.69,138.67,138.6,0.91]
[1763565017997,10.05810129,138.63,138.6,0.2]
[1763565018208,10.05810129,138.62,138.6,0.2]
[1763565018367,18.12096,138.68,138.6,0.2]
[1763565018368,10.05810129,138.61,138.6,0.2]
[1763565018568,0.69,138.63,138.6,0.2]
[1763565018972,0.69,138.66,138.6,0.2]
[1763565019914,10.05810129,138.68,138.62,10.05810129]
[1763565020203,10.05810129,138.68,138.63,10.05810129]
[1763565020373,10.05810129,138.68,138.61,0.7]
[1763565020374,0.65,138.68,138.61,0.7]
[1763565020566,10.70810129,138.68,138.63,10.05810129]
[1763565020763,10.05810129,138.67,138.62,1.78]
[1763565021292,0.65,138.72,138.64,7.21273025]
[1763565021599,10.05810129,138.7,138.64,7.21273025]
[1763565021900,10.05810129,138.7,138.64,17.27083154]
[1763565022066,10.05810129,138.69,138.64,10.05810129]
[1763565022262,10.05810129,138.69,138.63,1.0]
[1763565022263,0.65,138.69,138.63,1.0]
[1763565022495,10.05810129,138.65,138.63,1.0]
[1763565022698,10.05810129,138.64,138.63,0.28]
[1763565022905,10.05810129,138.64,138.6,0.2]
[1763565023081,10.05810129,138.61,138.6,0.2]
[1763565023604,10.70810129,138.61,138.6,0.2]
[1763565024573,10.05810129,138.61,138.6,0.2]
[1763565024869,20.12095999,138.69,138.6,0.2]
[1763565025088,10.05810129,138.63,138.6,0.2]
[1763565025302,1.78,138.68,138.6,0.2]
[1763565025303,0.69,138.68,138.6,0.2]
[1763565025595,10.05810129,138.64,138.6,0.2]
[1763565025965,0.69,138.67,138.6,0.2]
[1763565026168,10.05810129,138.66,138.6,18.19300706]
[1763565026396,10.05810129,138.65,138.6,0.92]
[1763565026617,10.05810129,138.64,138.6,0.92]
[1763565026779,10.05810129,138.63,138.6,0.2]
[1763565026974,10.05810129,138.64,138.6,0.2]
[1763565027367,1.78,138.7,138.62,10.05810129]
[1763565027678,0.69,138.7,138.63,10.05810129]
[1763565027887,10.05810129,138.68,138.62,10.05810129]
[1763565028070,0.69,138.7,138.62,0.72]
[1763565028270,0.69,138.76,138.66,10.05810129]
[1763565028499,10.05810129,138.72,138.67,10.05810129]
[1763565028667,10.05810129,138.71,138.66,11.83810129]
[1763565029300,10.05810129,138.73,138.67,17.98933142]
[1763565029504,0.69,138.77,138.69,10.05810129]
[1763565029715,18.00385349,138.86,138.67,7.93123013]
[1763565029716,10.05810129,138.76,138.71,10.05810129]
[1763565029885,10.05810129,138.75,138.7,10.05810129]
[1763565030206,19.90096,138.81,138.68,0.72]
[1763565030207,10.05810129,138.73,138.68,10.05810129]